{"text_format":"3","workbook":"xlsx","n_sheets":2,"sheets":["POČETAK","GODIŠNJI VREM. DEF. RASPORED"],"not_rendered":{"defined_names":2},"read":"whole","date_system":"1900"}

{"sheet":"POČETAK","index":0,"n_rows":8,"n_cols":2,"rows_kept":8}
[null,"OSNOVNI PODACI O OVOM PREDLOŠKU"]
[null,"Pratite broj časova rada dnevno, sedmično, mesečno i godišnje na ovoj Vremenska kartica zaposlenog."]
[null,"Popunite osnovne informacije kao što su ime zaposlenog, ime menadžera, adresa e-pošte i broj telefona. "]
[null,"Dodajte broj časova rada za svaki mesec u tabeli. Evidentirajte broj časova redovnog i prekovremenog rada u odvojenim kolonama za svaki dan u svakoj sedmici. "]
[null,"Ukupan broj časova rada, redovnog i prekovremenog rada automatski se izračunava. "]
[null,"Beleške:"]
[null,"Dodatna uputstva navedena su u koloni A na radnom listu „GODIŠNJI VREM. DEF. RASPORED“. Taj tekst je namerno skriven. Da biste uklonili tekst, izaberite kolonu A, a zatim izaberite stavku „IZBRIŠI“. Da biste otkrili tekst, izaberite kolonu A, a zatim promenite boju fonta. "]
[null,"Da biste saznali više o tabelama, pritisnite taster SHIFT, a zatim unutar tabele pritisnite taster F10, izaberite opciju „TABELA“, a zatim stavku „ALTERNATIVNI TEKST“."]

{"sheet":"GODIŠNJI VREM. DEF. RASPORED","index":1,"n_rows":132,"n_cols":15,"rows_kept":132,"merged":[[0,1,0,2],[0,4,0,14],[10,6,10,7],[21,6,21,7],[32,6,32,7],[33,4,33,14],[43,6,43,7],[54,6,54,7],[65,6,65,7],[66,4,66,14],[76,6,76,7],[87,6,87,7],[98,6,98,7],[99,4,99,14],[109,6,109,7],[120,6,120,7],[131,6,131,7]]}
["Na ovom radnom listu napravite dnevni, sedmični, mesečni ili godišnji vremenski definisan raspored zaposlenog. \nKorisna uputstva o tome kako da koristite ovu radnu svesku nalaze se u ćelijama u ovoj koloni. Pritisnite strelicu nadole da biste počeli.\nNaslov ovog radnog lista nalazi se u ćeliji sa desne strane, a naslov kvartala „Januar, februar, mart“ u ćeliji E1.","VREMENSKA KARTICA \nZAPOSLENOG",null,null,"Januar, februar, mart      Vremenska kartica zaposlenog: Dnevno, sedmično, mesečno, godišnje"]
["Ime zaposlenog unesite u ćeliju C2, a časove redovnog i prekovremenog rada u tabelu „Januar“ počevši od ćelije E2.","Ime zaposlenog:",null,null,"Januar","1. sedmica","Prekovremeni rad","2. sedmica","Prekovremeni rad  ","3. sedmica","Prekovremeni rad   ","4. sedmica","Prekovremeni rad    ","5. sedmica","Prekovremeni rad     "]
["Ime menadžera unesite u ćeliju C3.","Menadžer:",null,null,"Ponedeljak",{"v":8,"d":"8.0"}]
["Adresu e-pošte unesite u ćeliju C4.","Adresa e-pošte:",null,null,"Utorak",{"v":8,"d":"8.0"},{"v":2,"d":"2.0"}]
["Broj telefona unesite u ćeliju C5. Sledeće uputstvo se nalazi u ćeliji A9.","Telefon:",null,null,"Sreda"]
[{"$nulls":4},"Četvrtak"]
[{"$nulls":4},"Petak"]
[{"$nulls":4},"Subota"]
["Ukupan broj časova redovnog rada godišnje automatski se izračunava u ćeliji C9.","Broj časova redovnog rada:",{"$f":"BrČasovaRedovnogRada","v":31},null,"Nedelja"]
["Ukupan broj časova prekovremenog rada godišnje automatski se izračunava u ćeliji C10.","Broj časova prekovremenog rada:",{"$f":"Br._časova_prekovremenog_rada","v":4},null,"Ukupan broj časova sedmično",{"$f":"SUM(F3:F9)","v":{"v":16,"d":"16.0"}},{"v":2,"d":"2.0"},{"v":0,"d":"0.0"},{"v":0,"d":"0.0"},{"v":0,"d":"0.0"},{"v":0,"d":"0.0"},{"v":0,"d":"0.0"},{"v":0,"d":"0.0"},{"v":0,"d":"0.0"},{"v":0,"d":"0.0"}]
["Sveukupan broj časova rada godišnje automatski se izračunava u ćeliji C11. Ukupan broj časova redovnog rada u januaru automatski se izračunava u ćeliji F11, a ukupan broj časova prekovremenog rada u januaru u ćeliji I11. Sledeće uputstvo se nalazi u ćeliji A13.","Ukupno",{"$f":"BrČasovaRedovnogRada+Br._časova_prekovremenog_rada","v":35},null,{"$f":"TEXT(DATEVALUE(Januar[[#Headers],[Januar]]&\"  \"&YEAR(TODAY())),\"mmm.\")&\" ukupno: Redovno radno vreme\"","v":"jan. ukupno: Redovno radno vreme"},{"$f":"SUM(Januar[1. sedmica],Januar[2. sedmica],Januar[3. sedmica],Januar[4. sedmica],Januar[5. sedmica])","v":{"v":16,"d":"16.0"}},{"$f":"TEXT(DATEVALUE(Januar[[#Headers],[Januar]]&\"  \"&YEAR(TODAY())),\"mmm.\")&\" ukupno: Prekovremeni rad\"","v":"jan. ukupno: Prekovremeni rad"},null,{"$f":"SUM(Januar[Prekovremeni rad],Januar[[Prekovremeni rad  ]],Januar[[Prekovremeni rad   ]],Januar[[Prekovremeni rad    ]],Januar[[Prekovremeni rad     ]])","v":{"v":2,"d":"2.0"}}]
[]
["Broj časova redovnog i prekovremenog rada unesite u tabelu „Februar“ počevši od ćelije E13. Sledeće uputstvo se nalazi u ćeliji A22.",{"$nulls":3},"Februar","1. sedmica","Prekovremeni rad","2. sedmica","Prekovremeni rad  ","3. sedmica","Prekovremeni rad   ","4. sedmica","Prekovremeni rad    ","5. sedmica","Prekovremeni rad     "]
[{"$nulls":4},"Ponedeljak",{"v":8,"d":"8.0"}]
[{"$nulls":4},"Utorak",{"v":7,"d":"7.0"},{"v":2,"d":"2.0"}]
[{"$nulls":4},"Sreda"]
[{"$nulls":4},"Četvrtak"]
[{"$nulls":4},"Petak"]
[{"$nulls":4},"Subota"]
[{"$nulls":4},"Nedelja"]
[{"$nulls":4},"Ukupan broj časova sedmično",{"$f":"SUM(F14:F20)","v":{"v":15,"d":"15.0"}},{"v":2,"d":"2.0"},{"v":0,"d":"0.0"},{"v":0,"d":"0.0"},{"v":0,"d":"0.0"},{"v":0,"d":"0.0"},{"v":0,"d":"0.0"},{"v":0,"d":"0.0"},{"v":0,"d":"0.0"},{"v":0,"d":"0.0"}]
["Ukupan broj časova redovnog rada u februaru automatski se izračunava u ćeliji F22, a ukupan broj časova prekovremenog rada u februaru u ćeliji I22. Sledeće uputstvo se nalazi u ćeliji A24.",{"$nulls":3},{"$f":"TEXT(DATEVALUE(Februar[[#Headers],[Februar]]&\"  \"&YEAR(TODAY())),\"mmm.\")&\" ukupno: Redovno radno vreme\"","v":"feb. ukupno: Redovno radno vreme"},{"$f":"SUM(Februar[1. sedmica],Februar[2. sedmica],Februar[3. sedmica],Februar[4. sedmica],Februar[5. sedmica])","v":{"v":15,"d":"15.0"}},{"$f":"TEXT(DATEVALUE(Februar[[#Headers],[Februar]]&\" \"&YEAR(TODAY())),\"mmm.\")&\" ukupno: Prekovremeni rad\"","v":"feb. ukupno: Prekovremeni rad"},null,{"$f":"SUM(Februar[Prekovremeni rad],Februar[[Prekovremeni rad  ]],Februar[[Prekovremeni rad   ]],Februar[[Prekovremeni rad    ]],Februar[[Prekovremeni rad     ]])","v":{"v":2,"d":"2.0"}}]
[]
["Broj časova redovnog i prekovremenog rada unesite u tabelu „Mart“ počevši od ćelije E24. Sledeće uputstvo se nalazi u ćeliji A33.",{"$nulls":3},"Mart","1. sedmica","Prekovremeni rad","2. sedmica","Prekovremeni rad ","3. sedmica","Prekovremeni rad  ","4. sedmica","Prekovremeni rad    ","5. sedmica","Prekovremeni rad     "]
[{"$nulls":4},"Ponedeljak"]
[{"$nulls":4},"Utorak"]
[{"$nulls":4},"Sreda"]
[{"$nulls":4},"Četvrtak"]
[{"$nulls":4},"Petak"]
[{"$nulls":4},"Subota"]
[{"$nulls":4},"Nedelja"]
[{"$nulls":4},"Ukupan broj časova sedmično",{"$f":"SUM(F25:F31)","v":{"v":0,"d":"0.0"}},{"v":0,"d":"0.0"},{"v":0,"d":"0.0"},{"v":0,"d":"0.0"},{"v":0,"d":"0.0"},{"v":0,"d":"0.0"},{"v":0,"d":"0.0"},{"v":0,"d":"0.0"},{"v":0,"d":"0.0"},{"v":0,"d":"0.0"}]
["Ukupan broj časova redovnog rada u martu automatski se izračunava u ćeliji F33, a ukupan broj časova prekovremenog rada u martu u ćeliji I33.",{"$nulls":3},{"$f":"TEXT(DATEVALUE(Mart[[#Headers],[Mart]]&\" \"&YEAR(TODAY())),\"mmm.\")&\" ukupno: Redovno radno vreme\"","v":"mar. ukupno: Redovno radno vreme"},{"$f":"SUM(Mart[1. sedmica],Mart[2. sedmica],Mart[3. sedmica],Mart[4. sedmica],Mart[5. sedmica])","v":{"v":0,"d":"0.0"}},{"$f":"TEXT(DATEVALUE(Mart[[#Headers],[Mart]]&\" \"&YEAR(TODAY())),\"mmm.\")&\" ukupno: Prekovremeni rad\"","v":"mar. ukupno: Prekovremeni rad"},null,{"$f":"SUM(Mart[Prekovremeni rad],Mart[[Prekovremeni rad ]],Mart[[Prekovremeni rad  ]],Mart[[Prekovremeni rad    ]],Mart[[Prekovremeni rad     ]])","v":{"v":0,"d":"0.0"}}]
["Naslov drugog kvartala „April, maj, jun“ nalazi se u ćeliji E34. ",{"$nulls":3},"April, maj, jun      Vremenska kartica zaposlenog: Dnevno, sedmično, mesečno, godišnje"]
["Broj časova redovnog i prekovremenog rada u april unesite u tabelu počevši od ćelije E35. Sledeće uputstvo se nalazi u ćeliji A44.",{"$nulls":3},"April","1. sedmica","Prekovremeni rad","2. sedmica","Prekovremeni rad  ","3. sedmica","Prekovremeni rad   ","4. sedmica","Prekovremeni rad    ","5. sedmica","Prekovremeni rad     "]
[{"$nulls":4},"Ponedeljak"]
[{"$nulls":4},"Utorak"]
[{"$nulls":4},"Sreda"]
[{"$nulls":4},"Četvrtak"]
[{"$nulls":4},"Petak"]
[{"$nulls":4},"Subota"]
[{"$nulls":4},"Nedelja"]
[{"$nulls":4},"Ukupan broj časova sedmično",{"$f":"SUM(F36:F42)","v":{"v":0,"d":"0.0"}},{"v":0,"d":"0.0"},{"v":0,"d":"0.0"},{"v":0,"d":"0.0"},{"v":0,"d":"0.0"},{"v":0,"d":"0.0"},{"v":0,"d":"0.0"},{"v":0,"d":"0.0"},{"v":0,"d":"0.0"},{"v":0,"d":"0.0"}]
["Ukupan broj časova redovnog rada u aprilu automatski se izračunava u ćeliji F44, a ukupan broj časova prekovremenog rada u aprilu u ćeliji I44. Sledeće uputstvo se nalazi u ćeliji A46.",{"$nulls":3},{"$f":"TEXT(DATEVALUE(April[[#Headers],[April]]&\" \"&YEAR(TODAY())),\"mmm.\")&\" ukupno: Redovno radno vreme\"","v":"apr. ukupno: Redovno radno vreme"},{"$f":"SUM(April[1. sedmica],April[2. sedmica],April[3. sedmica],April[4. sedmica],April[5. sedmica])","v":{"v":0,"d":"0.0"}},{"$f":"TEXT(DATEVALUE(April[[#Headers],[April]]&\" \"&YEAR(TODAY())),\"mmm.\")&\" ukupno: Prekovremeni rad\"","v":"apr. ukupno: Prekovremeni rad"},null,{"$f":"SUM(April[Prekovremeni rad],April[[Prekovremeni rad  ]],April[[Prekovremeni rad   ]],April[[Prekovremeni rad    ]],April[[Prekovremeni rad     ]])","v":{"v":0,"d":"0.0"}}]
[]
["Broj časova redovnog i prekovremenog rada u maj unesite u tabelu počevši od ćelije E46. Sledeće uputstvo se nalazi u ćeliji A55.",{"$nulls":3},"Maj","1. sedmica","Prekovremeni rad","2. sedmica","Prekovremeni rad  ","3. sedmica","Prekovremeni rad   ","4. sedmica","Prekovremeni rad    ","5. sedmica","Prekovremeni rad     "]
[{"$nulls":4},"Ponedeljak"]
[{"$nulls":4},"Utorak"]
[{"$nulls":4},"Sreda"]
[{"$nulls":4},"Četvrtak"]
[{"$nulls":4},"Petak"]
[{"$nulls":4},"Subota"]
[{"$nulls":4},"Nedelja"]
[{"$nulls":4},"Ukupan broj časova sedmično",{"$f":"SUM(F47:F53)","v":{"v":0,"d":"0.0"}},{"v":0,"d":"0.0"},{"v":0,"d":"0.0"},{"v":0,"d":"0.0"},{"v":0,"d":"0.0"},{"v":0,"d":"0.0"},{"v":0,"d":"0.0"},{"v":0,"d":"0.0"},{"v":0,"d":"0.0"},{"v":0,"d":"0.0"}]
["Ukupan broj časova redovnog rada u maju automatski se izračunava u ćeliji F55, a ukupan broj časova prekovremenog rada u maju u ćeliji I55. Sledeće uputstvo se nalazi u ćeliji A57.",{"$nulls":3},{"$f":"TEXT(DATEVALUE(Maj[[#Headers],[Maj]]&\" \"&YEAR(TODAY())),\"mmm.\")&\" ukupno: Redovno radno vreme\"","v":"maj. ukupno: Redovno radno vreme"},{"$f":"SUM(Maj[1. sedmica],Maj[2. sedmica],Maj[3. sedmica],Maj[4. sedmica],Maj[5. sedmica])","v":{"v":0,"d":"0.0"}},{"$f":"TEXT(DATEVALUE(Maj[[#Headers],[Maj]]&\" \"&YEAR(TODAY())),\"mmm.\")&\" ukupno: Prekovremeni rad\"","v":"maj. ukupno: Prekovremeni rad"},null,{"$f":"SUM(Maj[Prekovremeni rad],Maj[[Prekovremeni rad  ]],Maj[[Prekovremeni rad   ]],Maj[[Prekovremeni rad    ]],Maj[[Prekovremeni rad     ]])","v":{"v":0,"d":"0.0"}}]
[]
["Broj časova redovnog i prekovremenog rada u jun unesite u tabelu počevši od ćelije E57. Sledeće uputstvo se nalazi u ćeliji A66.",{"$nulls":3},"Jun","1. sedmica","Prekovremeni rad","2. sedmica","Prekovremeni rad  ","3. sedmica","Prekovremeni rad   ","4. sedmica","Prekovremeni rad    ","5. sedmica","Prekovremeni rad     "]
[{"$nulls":4},"Ponedeljak"]
[{"$nulls":4},"Utorak"]
[{"$nulls":4},"Sreda"]
[{"$nulls":4},"Četvrtak"]
[{"$nulls":4},"Petak"]
[{"$nulls":4},"Subota"]
[{"$nulls":4},"Nedelja"]
[{"$nulls":4},"Ukupan broj časova sedmično",{"$f":"SUM(F58:F64)","v":{"v":0,"d":"0.0"}},{"v":0,"d":"0.0"},{"v":0,"d":"0.0"},{"v":0,"d":"0.0"},{"v":0,"d":"0.0"},{"v":0,"d":"0.0"},{"v":0,"d":"0.0"},{"v":0,"d":"0.0"},{"v":0,"d":"0.0"},{"v":0,"d":"0.0"}]
["Ukupan broj časova redovnog rada u junu automatski se izračunava u ćeliji F66, a ukupan broj časova prekovremenog rada u junu u ćeliji I66.",{"$nulls":3},{"$f":"TEXT(DATEVALUE(Jun[[#Headers],[Jun]]&\" \"&YEAR(TODAY())),\"mmm.\")&\" ukupno: Redovno radno vreme\"","v":"jun. ukupno: Redovno radno vreme"},{"$f":"SUM(Jun[1. sedmica],Jun[2. sedmica],Jun[3. sedmica],Jun[4. sedmica],Jun[5. sedmica])","v":{"v":0,"d":"0.0"}},{"$f":"TEXT(DATEVALUE(Jun[[#Headers],[Jun]]&\" \"&YEAR(TODAY())),\"mmm.\")&\" ukupno: Prekovremeni rad\"","v":"jun. ukupno: Prekovremeni rad"},null,{"$f":"SUM(Jun[Prekovremeni rad],Jun[[Prekovremeni rad  ]],Jun[[Prekovremeni rad   ]],Jun[[Prekovremeni rad    ]],Jun[[Prekovremeni rad     ]])","v":{"v":0,"d":"0.0"}}]
["Naslov trećeg kvartala „Jul, avgust, septembar“ nalazi se u ćeliji E67. ",{"$nulls":3},"Jul, avgust, septembar      Vremenska kartica zaposlenog: Dnevno, sedmično, mesečno, godišnje"]
["Broj časova redovnog i prekovremenog rada u jul unesite u tabelu počevši od ćelije E68. Sledeće uputstvo nalazi se u ćeliji A77.",{"$nulls":3},"Jul","1. sedmica","Prekovremeni rad","2. sedmica","Prekovremeni rad ","3. sedmica","Prekovremeni rad  ","4. sedmica","Prekovremeni rad   ","5. sedmica","Prekovremeni rad     "]
[{"$nulls":4},"Ponedeljak"]
[{"$nulls":4},"Utorak"]
[{"$nulls":4},"Sreda"]
[{"$nulls":4},"Četvrtak"]
[{"$nulls":4},"Petak"]
[{"$nulls":4},"Subota"]
[{"$nulls":4},"Nedelja"]
[{"$nulls":4},"Ukupan broj časova sedmično",{"$f":"SUM(F69:F75)","v":{"v":0,"d":"0.0"}},{"v":0,"d":"0.0"},{"v":0,"d":"0.0"},{"v":0,"d":"0.0"},{"v":0,"d":"0.0"},{"v":0,"d":"0.0"},{"v":0,"d":"0.0"},{"v":0,"d":"0.0"},{"v":0,"d":"0.0"},{"v":0,"d":"0.0"}]
["Ukupan broj časova redovnog rada u julu automatski se izračunava u ćeliji F77, a ukupan broj časova prekovremenog rada u julu u ćeliji I77. Sledeće uputstvo nalazi se u ćeliji A79.",{"$nulls":3},{"$f":"TEXT(DATEVALUE(Jul[[#Headers],[Jul]]&\" \"&YEAR(TODAY())),\"mmm.\")&\" ukupno: Redovno radno vreme\"","v":"jul. ukupno: Redovno radno vreme"},{"$f":"SUM(Jul[1. sedmica],Jul[2. sedmica],Jul[3. sedmica],Jul[4. sedmica],Jul[5. sedmica])","v":{"v":0,"d":"0.0"}},{"$f":"TEXT(DATEVALUE(Jul[[#Headers],[Jul]]&\" \"&YEAR(TODAY())),\"mmm.\")&\" ukupno: Prekovremeni rad\"","v":"jul. ukupno: Prekovremeni rad"},null,{"$f":"SUM(Jul[Prekovremeni rad],Jul[[Prekovremeni rad ]],Jul[[Prekovremeni rad  ]],Jul[[Prekovremeni rad   ]],Jul[[Prekovremeni rad     ]])","v":{"v":0,"d":"0.0"}}]
[]
["Broj časova redovnog i prekovremenog rada u avgust unesite u tabelu počevši od ćelije E79. Sledeće uputstvo se nalazi u ćeliji A88.",{"$nulls":3},"Avgust","1. sedmica","Prekovremeni rad","2. sedmica","Prekovremeni rad ","3. sedmica","Prekovremeni rad   ","4. sedmica","Prekovremeni rad  ","5. sedmica","Prekovremeni rad    "]
[{"$nulls":4},"Ponedeljak"]
[{"$nulls":4},"Utorak"]
[{"$nulls":4},"Sreda"]
[{"$nulls":4},"Četvrtak"]
[{"$nulls":4},"Petak"]
[{"$nulls":4},"Subota"]
[{"$nulls":4},"Nedelja"]
[{"$nulls":4},"Ukupan broj časova sedmično",{"$f":"SUBTOTAL(109,Avgust[1. sedmica])","v":{"v":0,"d":"0.0"}},{"$f":"SUBTOTAL(109,Avgust[Prekovremeni rad])","v":{"v":0,"d":"0.0"}},{"$f":"SUBTOTAL(109,Avgust[2. sedmica])","v":{"v":0,"d":"0.0"}},{"$f":"SUBTOTAL(109,Avgust[[Prekovremeni rad ]])","v":{"v":0,"d":"0.0"}},{"$f":"SUBTOTAL(109,Avgust[3. sedmica])","v":{"v":0,"d":"0.0"}},{"$f":"SUBTOTAL(109,Avgust[[Prekovremeni rad   ]])","v":{"v":0,"d":"0.0"}},{"$f":"SUBTOTAL(109,Avgust[4. sedmica])","v":{"v":0,"d":"0.0"}},{"$f":"SUBTOTAL(109,Avgust[[Prekovremeni rad  ]])","v":{"v":0,"d":"0.0"}},{"$f":"SUBTOTAL(109,Avgust[5. sedmica])","v":{"v":0,"d":"0.0"}},{"$f":"SUBTOTAL(109,Avgust[[Prekovremeni rad    ]])","v":{"v":0,"d":"0.0"}}]
["Ukupan broj časova redovnog rada u avgustu automatski se izračunava u ćeliji F88, a ukupan broj časova prekovremenog rada u avgustu u ćeliji I88. Sledeće uputstvo se nalazi u ćeliji A90.",{"$nulls":3},{"$f":"TEXT(DATEVALUE(Avgust[[#Headers],[Avgust]]&\" \"&YEAR(TODAY())),\"mmm.\")&\" ukupno: Redovno radno vreme\"","v":"avg. ukupno: Redovno radno vreme"},{"$f":"SUM(Avgust[1. sedmica],Avgust[2. sedmica],Avgust[3. sedmica],Avgust[4. sedmica],Avgust[5. sedmica])","v":{"v":0,"d":"0.0"}},{"$f":"TEXT(DATEVALUE(Avgust[[#Headers],[Avgust]]&\" \"&YEAR(TODAY())),\"mmm.\")&\" ukupno: Prekovremeni rad\"","v":"avg. ukupno: Prekovremeni rad"},null,{"$f":"SUM(Avgust[Prekovremeni rad],Avgust[[Prekovremeni rad ]],Avgust[[Prekovremeni rad   ]],Avgust[[Prekovremeni rad  ]],Avgust[[Prekovremeni rad    ]])","v":{"v":0,"d":"0.0"}}]
[]
["Broj časova redovnog i prekovremenog rada u septembar unesite u tabelu počevši od ćelije E90. Sledeće uputstvo se nalazi u ćeliji A99.",{"$nulls":3},"Septembar","1. sedmica","Prekovremeni rad","2. sedmica","Prekovremeni rad ","3. sedmica","Prekovremeni rad  ","4. sedmica","Prekovremeni rad   ","5. sedmica","Prekovremeni rad    "]
[{"$nulls":4},"Ponedeljak"]
[{"$nulls":4},"Utorak"]
[{"$nulls":4},"Sreda"]
[{"$nulls":4},"Četvrtak"]
[{"$nulls":4},"Petak"]
[{"$nulls":4},"Subota"]
[{"$nulls":4},"Nedelja"]
[{"$nulls":4},"Ukupan broj časova sedmično",{"$f":"SUBTOTAL(109,Septembar[1. sedmica])","v":{"v":0,"d":"0.0"}},{"$f":"SUBTOTAL(109,Septembar[Prekovremeni rad])","v":{"v":0,"d":"0.0"}},{"$f":"SUBTOTAL(109,Septembar[2. sedmica])","v":{"v":0,"d":"0.0"}},{"$f":"SUBTOTAL(109,Septembar[[Prekovremeni rad ]])","v":{"v":0,"d":"0.0"}},{"$f":"SUBTOTAL(109,Septembar[3. sedmica])","v":{"v":0,"d":"0.0"}},{"$f":"SUBTOTAL(109,Septembar[[Prekovremeni rad  ]])","v":{"v":0,"d":"0.0"}},{"$f":"SUBTOTAL(109,Septembar[4. sedmica])","v":{"v":0,"d":"0.0"}},{"$f":"SUBTOTAL(109,Septembar[[Prekovremeni rad   ]])","v":{"v":0,"d":"0.0"}},{"$f":"SUBTOTAL(109,Septembar[5. sedmica])","v":{"v":0,"d":"0.0"}},{"$f":"SUBTOTAL(109,Septembar[[Prekovremeni rad    ]])","v":{"v":0,"d":"0.0"}}]
["Ukupan broj časova redovnog rada u septembru automatski se izračunava u ćeliji F99, a ukupan broj časova prekovremenog rada u septembru u ćeliji I99.",{"$nulls":3},{"$f":"TEXT(DATEVALUE(Septembar[[#Headers],[Septembar]]&\" \"&YEAR(TODAY())),\"mmm.\")&\" ukupno: Redovno radno vreme\"","v":"sep. ukupno: Redovno radno vreme"},{"$f":"SUM(Septembar[1. sedmica],Septembar[2. sedmica],Septembar[3. sedmica],Septembar[4. sedmica],Septembar[5. sedmica])","v":{"v":0,"d":"0.0"}},{"$f":"TEXT(DATEVALUE(Septembar[[#Headers],[Septembar]]&\" \"&YEAR(TODAY())),\"mmm.\")&\" ukupno: Prekovremeni rad\"","v":"sep. ukupno: Prekovremeni rad"},null,{"$f":"SUM(Septembar[Prekovremeni rad],Septembar[[Prekovremeni rad ]],Septembar[[Prekovremeni rad  ]],Septembar[[Prekovremeni rad   ]],Septembar[[Prekovremeni rad    ]])","v":{"v":0,"d":"0.0"}}]
["Naslov četvrtog kvartala „Oktobar, novembar, decembar“ nalazi se u ćeliji E100. ",{"$nulls":3},"Oktobar, novembar, decembar       Vremenska kartica zaposlenog: Dnevno, sedmično, mesečno, godišnje"]
["Broj časova redovnog i prekovremenog rada u oktobar unesite u tabelu počevši od ćelije E101. Sledeće uputstvo se nalazi u ćeliji A110.",{"$nulls":3},"Oktobar","1. sedmica","Prekovremeni rad","2. sedmica","Prekovremeni rad ","3. sedmica","Prekovremeni rad  ","4. sedmica","Prekovremeni rad   ","5. sedmica","Prekovremeni rad    "]
[{"$nulls":4},"Ponedeljak"]
[{"$nulls":4},"Utorak"]
[{"$nulls":4},"Sreda"]
[{"$nulls":4},"Četvrtak"]
[{"$nulls":4},"Petak"]
[{"$nulls":4},"Subota"]
[{"$nulls":4},"Nedelja"]
[{"$nulls":4},"Ukupan broj časova sedmično",{"$f":"SUBTOTAL(109,Oktobar[1. sedmica])","v":{"v":0,"d":"0.0"}},{"$f":"SUBTOTAL(109,Oktobar[Prekovremeni rad])","v":{"v":0,"d":"0.0"}},{"$f":"SUBTOTAL(109,Oktobar[2. sedmica])","v":{"v":0,"d":"0.0"}},{"$f":"SUBTOTAL(109,Oktobar[[Prekovremeni rad ]])","v":{"v":0,"d":"0.0"}},{"$f":"SUBTOTAL(109,Oktobar[3. sedmica])","v":{"v":0,"d":"0.0"}},{"$f":"SUBTOTAL(109,Oktobar[[Prekovremeni rad  ]])","v":{"v":0,"d":"0.0"}},{"$f":"SUBTOTAL(109,Oktobar[4. sedmica])","v":{"v":0,"d":"0.0"}},{"$f":"SUBTOTAL(109,Oktobar[[Prekovremeni rad   ]])","v":{"v":0,"d":"0.0"}},{"$f":"SUBTOTAL(109,Oktobar[5. sedmica])","v":{"v":0,"d":"0.0"}},{"$f":"SUBTOTAL(109,Oktobar[[Prekovremeni rad    ]])","v":{"v":0,"d":"0.0"}}]
["Ukupan broj časova redovnog rada u oktobru automatski se izračunava u ćeliji F110, a ukupan broj časova prekovremenog rada u oktobru u ćeliji I110. Sledeće uputstvo se nalazi u ćeliji A112.",{"$nulls":3},{"$f":"TEXT(DATEVALUE(Oktobar[[#Headers],[Oktobar]]&\" \"&YEAR(TODAY())),\"mmm.\")&\" ukupno: Redovno radno vreme\"","v":"okt. ukupno: Redovno radno vreme"},{"$f":"SUM(Oktobar[1. sedmica],Oktobar[2. sedmica],Oktobar[3. sedmica],Oktobar[4. sedmica],Oktobar[5. sedmica])","v":{"v":0,"d":"0.0"}},{"$f":"TEXT(DATEVALUE(Oktobar[[#Headers],[Oktobar]]&\" \"&YEAR(TODAY())),\"mmm.\")&\" ukupno: Prekovremeni rad\"","v":"okt. ukupno: Prekovremeni rad"},null,{"$f":"SUM(Oktobar[Prekovremeni rad],Oktobar[[Prekovremeni rad ]],Oktobar[[Prekovremeni rad  ]],Oktobar[[Prekovremeni rad   ]],Oktobar[[Prekovremeni rad    ]])","v":{"v":0,"d":"0.0"}}]
[]
["Broj časova redovnog i prekovremenog rada u novembar unesite u tabelu počevši od ćelije E112. Sledeće uputstvo se nalazi u ćeliji A121.",{"$nulls":3},"Novembar","1. sedmica","Prekovremeni rad","2. sedmica","Prekovremeni rad ","3. sedmica","Prekovremeni rad  ","4. sedmica","Prekovremeni rad    ","5. sedmica","Prekovremeni rad     "]
[{"$nulls":4},"Ponedeljak"]
[{"$nulls":4},"Utorak"]
[{"$nulls":4},"Sreda"]
[{"$nulls":4},"Četvrtak"]
[{"$nulls":4},"Petak"]
[{"$nulls":4},"Subota"]
[{"$nulls":4},"Nedelja"]
[{"$nulls":4},"Ukupan broj časova sedmično",{"$f":"SUBTOTAL(109,Novembar[1. sedmica])","v":{"v":0,"d":"0.0"}},{"$f":"SUBTOTAL(109,Novembar[Prekovremeni rad])","v":{"v":0,"d":"0.0"}},{"$f":"SUBTOTAL(109,Novembar[2. sedmica])","v":{"v":0,"d":"0.0"}},{"$f":"SUBTOTAL(109,Novembar[[Prekovremeni rad ]])","v":{"v":0,"d":"0.0"}},{"$f":"SUBTOTAL(109,Novembar[3. sedmica])","v":{"v":0,"d":"0.0"}},{"$f":"SUBTOTAL(109,Novembar[[Prekovremeni rad  ]])","v":{"v":0,"d":"0.0"}},{"$f":"SUBTOTAL(109,Novembar[4. sedmica])","v":{"v":0,"d":"0.0"}},{"$f":"SUBTOTAL(109,Novembar[[Prekovremeni rad    ]])","v":{"v":0,"d":"0.0"}},{"$f":"SUBTOTAL(109,Novembar[5. sedmica])","v":{"v":0,"d":"0.0"}},{"$f":"SUBTOTAL(109,Novembar[[Prekovremeni rad     ]])","v":{"v":0,"d":"0.0"}}]
["Ukupan broj časova redovnog rada u novembru automatski se izračunava u ćeliji F121, a ukupan broj časova prekovremenog rada u novembru u ćeliji I121. Sledeće uputstvo se nalazi u ćeliji A123.",{"$nulls":3},{"$f":"TEXT(DATEVALUE(Novembar[[#Headers],[Novembar]]&\" \"&YEAR(TODAY())),\"mmm.\")&\" ukupno: Redovno radno vreme\"","v":"nov. ukupno: Redovno radno vreme"},{"$f":"SUM(Novembar[1. sedmica],Novembar[2. sedmica],Novembar[3. sedmica],Novembar[4. sedmica],Novembar[5. sedmica])","v":{"v":0,"d":"0.0"}},{"$f":"TEXT(DATEVALUE(Novembar[[#Headers],[Novembar]]&\" \"&YEAR(TODAY())),\"mmm.\")&\" ukupno: Prekovremeni rad\"","v":"nov. ukupno: Prekovremeni rad"},null,{"$f":"SUM(Novembar[Prekovremeni rad],Novembar[[Prekovremeni rad ]],Novembar[[Prekovremeni rad  ]],Novembar[[Prekovremeni rad    ]],Novembar[[Prekovremeni rad     ]])","v":{"v":0,"d":"0.0"}}]
[]
["Broj časova redovnog i prekovremenog rada u decembar unesite u tabelu počevši od ćelije E123. Sledeće uputstvo se nalazi u ćeliji A132.",{"$nulls":3},"Decembar","1. sedmica","Prekovremeni rad","2. sedmica","Prekovremeni rad ","3. sedmica","Prekovremeni rad  ","4. sedmica","Prekovremeni rad   ","5. sedmica","Prekovremeni rad    "]
[{"$nulls":4},"Ponedeljak"]
[{"$nulls":4},"Utorak"]
[{"$nulls":4},"Sreda"]
[{"$nulls":4},"Četvrtak"]
[{"$nulls":4},"Petak"]
[{"$nulls":4},"Subota"]
[{"$nulls":4},"Nedelja"]
[{"$nulls":4},"Ukupan broj časova sedmično",{"$f":"SUBTOTAL(109,Decembar[1. sedmica])","v":{"v":0,"d":"0.0"}},{"$f":"SUBTOTAL(109,Decembar[Prekovremeni rad])","v":{"v":0,"d":"0.0"}},{"$f":"SUBTOTAL(109,Decembar[2. sedmica])","v":{"v":0,"d":"0.0"}},{"$f":"SUBTOTAL(109,Decembar[[Prekovremeni rad ]])","v":{"v":0,"d":"0.0"}},{"$f":"SUBTOTAL(109,Decembar[3. sedmica])","v":{"v":0,"d":"0.0"}},{"$f":"SUBTOTAL(109,Decembar[[Prekovremeni rad  ]])","v":{"v":0,"d":"0.0"}},{"$f":"SUBTOTAL(109,Decembar[4. sedmica])","v":{"v":0,"d":"0.0"}},{"$f":"SUBTOTAL(109,Decembar[[Prekovremeni rad   ]])","v":{"v":0,"d":"0.0"}},{"$f":"SUBTOTAL(109,Decembar[5. sedmica])","v":{"v":0,"d":"0.0"}},{"$f":"SUBTOTAL(109,Decembar[[Prekovremeni rad    ]])","v":{"v":0,"d":"0.0"}}]
["Ukupan broj časova redovnog rada u decembru automatski se izračunava u ćeliji F132, a ukupan broj časova prekovremenog rada u decembru u ćeliji I132.",{"$nulls":3},{"$f":"TEXT(DATEVALUE(Decembar[[#Headers],[Decembar]]&\" \"&YEAR(TODAY())),\"mmm.\")&\" ukupno: Redovno radno vreme\"","v":"dec. ukupno: Redovno radno vreme"},{"$f":"SUM(Decembar[1. sedmica],Decembar[2. sedmica],Decembar[3. sedmica],Decembar[4. sedmica],Decembar[5. sedmica])","v":{"v":0,"d":"0.0"}},{"$f":"TEXT(DATEVALUE(Decembar[[#Headers],[Decembar]]&\" \"&YEAR(TODAY())),\"mmm.\")&\" ukupno: Prekovremeni rad\"","v":"dec. ukupno: Prekovremeni rad"},null,{"$f":"SUM(G124:G130,I124:I130,K124:K130,M124:M130,O124:O130)","v":{"v":0,"d":"0.0"}}]